[Event "Titled Tuesday Blitz May 10 Early 2022"]
[White "Stoleriu, George"]
[Black "Maghsoodloo, Parham"]
[WhiteFideId "1227505"]
[BlackFideId "12539929"]
[WhiteElo "2194"]
[BlackElo "2630"]
[Result "0-1"]
[Round "04"]
[TimeControl "180+1"]
[Date "2022.05.10"]
[WhiteClock "0:00:04"]
[BlackClock "0:00:49"]

1. e4 {[%clk 0:03:00]}  c5 {[%clk 0:02:58]} 2. Nf3 {[%clk 0:02:57]}  d6 {[%clk 0:02:59]} 3. Bb5+ {[%clk 0:02:56]}  Nd7 {[%clk 0:02:59]} 4. d4 {[%clk 0:02:56]}  cxd4 {[%clk 0:03:00]} 5. Qxd4 {[%clk 0:02:57]}  e5 {[%clk 0:02:58]} 6. Qd3 {[%clk 0:02:57]}  a6 {[%clk 0:02:58]} 7. Bxd7+ {[%clk 0:02:57]}  Bxd7 {[%clk 0:02:57]} 8. c4 {[%clk 0:02:58]}  b5 {[%clk 0:02:57]} 9. Nc3 {[%clk 0:02:58]}  bxc4 {[%clk 0:02:43]} 10. Qxc4 {[%clk 0:02:59]}  Nf6 {[%clk 0:02:43]} 11. Bg5 {[%clk 0:02:58]}  Be7 {[%clk 0:02:43]} 12. Bxf6 {[%clk 0:02:55]}  Bxf6 {[%clk 0:02:43]} 13. O-O {[%clk 0:02:55]}  O-O {[%clk 0:02:43]} 14. Rfd1 {[%clk 0:02:50]}  Be7 {[%clk 0:02:42]} 15. Rac1 {[%clk 0:02:47]}  Re8 {[%clk 0:02:40]} 16. Nd5 {[%clk 0:02:40]}  Bf8 {[%clk 0:02:39]} 17. Qc7 {[%clk 0:02:32]}  Rb8 {[%clk 0:02:24]} 18. b3 {[%clk 0:02:18]}  a5 {[%clk 0:02:21]} 19. Qxd8 {[%clk 0:01:41]}  Rexd8 {[%clk 0:02:20]} 20. Rc7 {[%clk 0:01:32]}  a4 {[%clk 0:02:19]} 21. b4 {[%clk 0:01:30]}  a3 {[%clk 0:02:11]} 22. Ra7 {[%clk 0:01:23]}  Be6 {[%clk 0:02:11]} 23. Rxa3 {[%clk 0:00:57]}  Bxd5 {[%clk 0:02:10]} 24. Rxd5 {[%clk 0:00:58]}  Rxb4 {[%clk 0:02:10]} 25. Nd2 {[%clk 0:00:56]}  g6 {[%clk 0:02:02]} 26. f3 {[%clk 0:00:56]}  Rc8 {[%clk 0:01:58]} 27. Kf2 {[%clk 0:00:28]}  Rb2 {[%clk 0:01:55]} 28. Ke2 {[%clk 0:00:24]}  Rcc2 {[%clk 0:01:42]} 29. Kd1 {[%clk 0:00:20]}  Rxa2 {[%clk 0:01:40]} 30. Rxa2 {[%clk 0:00:17]}  Rxa2 {[%clk 0:01:41]} 31. h3 {[%clk 0:00:13]}  f5 {[%clk 0:01:41]} 32. g4 {[%clk 0:00:12]}  f4 {[%clk 0:01:35]} 33. Ke2 {[%clk 0:00:10]}  Kf7 {[%clk 0:01:35]} 34. Rb5 {[%clk 0:00:10]}  Ke6 {[%clk 0:01:35]} 35. Rb7 {[%clk 0:00:09]}  Be7 {[%clk 0:01:34]} 36. Kd3 {[%clk 0:00:09]}  Ra3+ {[%clk 0:01:26]} 37. Ke2 {[%clk 0:00:07]}  Re3+ {[%clk 0:01:27]} 38. Kd1 {[%clk 0:00:03]}  Rc3 {[%clk 0:01:26]} 39. Rb3 {[%clk 0:00:02]}  Rc6 {[%clk 0:01:24]} 40. Rb2 {[%clk 0:00:02]}  h5 {[%clk 0:01:25]} 41. Rc2 {[%clk 0:00:03]}  Ra6 {[%clk 0:01:24]} 42. Ke2 {[%clk 0:00:03]}  Ra1 {[%clk 0:01:21]} 43. Nf1 {[%clk 0:00:02]}  Bh4 {[%clk 0:01:20]} 44. Nd2 {[%clk 0:00:02]}  Rh1 {[%clk 0:01:19]} 45. Rc7 {[%clk 0:00:02]}  Rxh3 {[%clk 0:01:15]} 46. Rg7 {[%clk 0:00:02]}  Kf6 {[%clk 0:01:10]} 47. Rd7 {[%clk 0:00:02]}  hxg4 {[%clk 0:01:11]} 48. fxg4 {[%clk 0:00:03]}  Ke6 {[%clk 0:01:08]} 49. Rg7 {[%clk 0:00:02]}  Re3+ {[%clk 0:01:08]} 50. Kd1 {[%clk 0:00:02]}  g5 {[%clk 0:01:09]} 51. Rg6+ {[%clk 0:00:03]}  Kd7 {[%clk 0:01:09]} 52. Nc4 {[%clk 0:00:03]}  Rd3+ {[%clk 0:01:09]} 53. Kc2 {[%clk 0:00:03]}  Rd4 {[%clk 0:01:09]} 54. Nb6+ {[%clk 0:00:03]}  Kc6 {[%clk 0:01:09]} 55. Nd5 {[%clk 0:00:04]}  Rxe4 {[%clk 0:01:10]} 56. Ne7+ {[%clk 0:00:04]}  Kc5 {[%clk 0:01:10]} 57. Nf5 {[%clk 0:00:05]}  f3 {[%clk 0:01:10]} 58. Rxd6 {[%clk 0:00:02]}  f2 {[%clk 0:01:09]} 59. Rd1 {[%clk 0:00:02]}  Rxg4 {[%clk 0:01:09]} 60. Ne3 {[%clk 0:00:02]}  Rf4 {[%clk 0:01:09]} 61. Kd3 {[%clk 0:00:02]}  g4 {[%clk 0:01:06]} 62. Ke2 {[%clk 0:00:03]}  g3 {[%clk 0:01:02]} 63. Rd5+ {[%clk 0:00:03]}  Kc6 {[%clk 0:01:03]} 64. Rd1 {[%clk 0:00:03]}  Re4 {[%clk 0:01:00]} 65. Kf3 {[%clk 0:00:03]}  Rxe3+ {[%clk 0:01:01]} 66. Kxe3 {[%clk 0:00:04]}  g2 {[%clk 0:01:01]} 67. Ke2 {[%clk 0:00:04]}  g1=Q {[%clk 0:00:49]} 0-1


[Site "https://www.chess.com"]

[Event "Titled Tuesday Blitz May 10 Early 2022"]
[White "Tania, Sachdev"]
[Black "Wagner, Dennis"]
[WhiteFideId "5007844"]
[BlackFideId "24650684"]
[WhiteElo "2280"]
[BlackElo "2355"]
[Result "0-1"]
[Round "04"]
[TimeControl "180+1"]
[Date "2022.05.11"]
[WhiteClock "0:00:02"]
[BlackClock "0:00:08"]

1. d4 {[%clk 0:03:00]}  Nf6 {[%clk 0:03:00]} 2. c4 {[%clk 0:03:00]}  e6 {[%clk 0:03:00]} 3. Nf3 {[%clk 0:02:57]}  d5 {[%clk 0:03:00]} 4. Nc3 {[%clk 0:02:56]}  Bb4 {[%clk 0:02:59]} 5. Qa4+ {[%clk 0:02:50]}  Nc6 {[%clk 0:02:59]} 6. Bd2 {[%clk 0:02:47]}  O-O {[%clk 0:02:58]} 7. e3 {[%clk 0:02:46]}  Re8 {[%clk 0:02:55]} 8. c5 {[%clk 0:02:34]}  Bd7 {[%clk 0:02:35]} 9. Qc2 {[%clk 0:02:32]}  e5 {[%clk 0:02:28]} 10. a3 {[%clk 0:02:14]}  exd4 {[%clk 0:02:11]} 11. axb4 {[%clk 0:02:14]}  Nxb4 {[%clk 0:02:12]} 12. Qb3 {[%clk 0:02:11]}  dxc3 {[%clk 0:02:11]} 13. Bxc3 {[%clk 0:02:07]}  a5 {[%clk 0:02:03]} 14. Be2 {[%clk 0:02:04]}  Ne4 {[%clk 0:01:50]} 15. Bd4 {[%clk 0:01:50]}  Qe7 {[%clk 0:01:41]} 16. Rc1 {[%clk 0:01:39]}  Bc6 {[%clk 0:00:58]} 17. O-O {[%clk 0:01:29]}  f6 {[%clk 0:00:59]} 18. Rfd1 {[%clk 0:01:24]}  Qd7 {[%clk 0:00:59]} 19. Ra1 {[%clk 0:01:17]}  Bb5 {[%clk 0:00:53]} 20. Bxb5 {[%clk 0:01:08]}  Qxb5 {[%clk 0:00:54]} 21. Rac1 {[%clk 0:00:53]}  a4 {[%clk 0:00:40]} 22. Qa3 {[%clk 0:00:53]}  Nc6 {[%clk 0:00:35]} 23. Qa2 {[%clk 0:00:28]}  Red8 {[%clk 0:00:26]} 24. Bc3 {[%clk 0:00:19]}  Qb3 {[%clk 0:00:22]} 25. Qxb3 {[%clk 0:00:19]}  axb3 {[%clk 0:00:23]} 26. Bd4 {[%clk 0:00:18]}  Ra2 {[%clk 0:00:22]} 27. Rb1 {[%clk 0:00:18]}  Na5 {[%clk 0:00:16]} 28. Ne1 {[%clk 0:00:13]}  Nc4 {[%clk 0:00:15]} 29. Nd3 {[%clk 0:00:14]}  Ra4 {[%clk 0:00:07]} 30. f3 {[%clk 0:00:12]}  Ng5 {[%clk 0:00:05]} 31. Nc1 {[%clk 0:00:10]}  Rb4 {[%clk 0:00:05]} 32. Nd3 {[%clk 0:00:10]}  Rb5 {[%clk 0:00:06]} 33. Rbc1 {[%clk 0:00:10]}  Ne6 {[%clk 0:00:06]} 34. Nf2 {[%clk 0:00:05]}  c6 {[%clk 0:00:06]} 35. Nd3 {[%clk 0:00:04]}  Re8 {[%clk 0:00:06]} 36. Bc3 {[%clk 0:00:04]}  Nxc5 {[%clk 0:00:06]} 37. Nxc5 {[%clk 0:00:04]}  Rxc5 {[%clk 0:00:06]} 38. Bd4 {[%clk 0:00:04]}  Ra5 {[%clk 0:00:07]} 39. Rc3 {[%clk 0:00:05]}  Rb5 {[%clk 0:00:07]} 40. Rdd3 {[%clk 0:00:04]}  Na5 {[%clk 0:00:08]} 41. Kf2 {[%clk 0:00:03]}  b6 {[%clk 0:00:07]} 42. Rc1 {[%clk 0:00:02]}  c5 {[%clk 0:00:07]} 43. Bc3 {[%clk 0:00:02]}  c4 {[%clk 0:00:07]} 44. Rd4 {[%clk 0:00:02]}  Nc6 {[%clk 0:00:08]} 45. Rg4 {[%clk 0:00:03]}  Ne5 {[%clk 0:00:08]} 46. Rg3 {[%clk 0:00:02]}  Nd3+ {[%clk 0:00:08]} 0-1


[Site "https://www.chess.com"]

[Event "Titled Tuesday Blitz May 10 Early 2022"]
[White "Terry, Renato"]
[Black "Samant Aditya S"]
[WhiteFideId "3803457"]
[BlackFideId "35080580"]
[WhiteElo "2577"]
[BlackElo "1916"]
[Result "1-0"]
[Round "04"]
[TimeControl "180+1"]
[Date "2022.05.10"]
[WhiteClock "0:00:04"]
[BlackClock "0:00:04"]

1. d4 {[%clk 0:03:00]}  Nf6 {[%clk 0:02:59]} 2. Nf3 {[%clk 0:03:00]}  e6 {[%clk 0:02:58]} 3. c4 {[%clk 0:03:00]}  Bb4+ {[%clk 0:02:58]} 4. Bd2 {[%clk 0:02:59]}  c5 {[%clk 0:02:58]} 5. g3 {[%clk 0:02:55]}  Qb6 {[%clk 0:02:46]} 6. Bg2 {[%clk 0:02:51]}  Nc6 {[%clk 0:02:37]} 7. dxc5 {[%clk 0:02:41]}  Bxc5 {[%clk 0:02:26]} 8. O-O {[%clk 0:02:41]}  Ne4 {[%clk 0:02:22]} 9. Be1 {[%clk 0:00:56]}  Qxb2 {[%clk 0:02:21]} 10. Nfd2 {[%clk 0:00:47]}  Nxf2 {[%clk 0:01:39]} 11. Bxf2 {[%clk 0:00:32]}  Bxf2+ {[%clk 0:01:40]} 12. Rxf2 {[%clk 0:00:33]}  Qxa1 {[%clk 0:01:40]} 13. e3 {[%clk 0:00:25]}  O-O {[%clk 0:01:21]} 14. Ne4 {[%clk 0:00:25]}  Qe5 {[%clk 0:01:19]} 15. Qd2 {[%clk 0:00:17]}  d5 {[%clk 0:01:17]} 16. Nec3 {[%clk 0:00:12]}  dxc4 {[%clk 0:01:10]} 17. Na3 {[%clk 0:00:12]}  Qc5 {[%clk 0:01:06]} 18. Nc2 {[%clk 0:00:08]}  e5 {[%clk 0:00:50]} 19. Ne4 {[%clk 0:00:08]}  Qe7 {[%clk 0:00:48]} 20. Qc3 {[%clk 0:00:07]}  Be6 {[%clk 0:00:47]} 21. h3 {[%clk 0:00:07]}  Rfd8 {[%clk 0:00:46]} 22. g4 {[%clk 0:00:07]}  Rd3 {[%clk 0:00:45]} 23. Qb2 {[%clk 0:00:06]}  Rad8 {[%clk 0:00:44]} 24. Kh2 {[%clk 0:00:06]}  Bd5 {[%clk 0:00:35]} 25. Qc1 {[%clk 0:00:03]}  Nb4 {[%clk 0:00:29]} 26. Ne1 {[%clk 0:00:02]}  Bxe4 {[%clk 0:00:25]} 27. Bxe4 {[%clk 0:00:03]}  Rd1 {[%clk 0:00:26]} 28. Qc3 {[%clk 0:00:04]}  Nd3 {[%clk 0:00:21]} 29. Nxd3 {[%clk 0:00:02]}  cxd3 {[%clk 0:00:22]} 30. Bf3 {[%clk 0:00:01]}  Rb1 {[%clk 0:00:18]} 31. Be4 {[%clk 0:00:02]}  Rb6 {[%clk 0:00:14]} 32. Rd2 {[%clk 0:00:01]}  Rbd6 {[%clk 0:00:13]} 33. Kg2 {[%clk 0:00:02]}  g6 {[%clk 0:00:13]} 34. Rd1 {[%clk 0:00:01]}  b6 {[%clk 0:00:14]} 35. Qd2 {[%clk 0:00:02]}  Qe6 {[%clk 0:00:14]} 36. Rf1 {[%clk 0:00:02]}  Rc8 {[%clk 0:00:11]} 37. Kg3 {[%clk 0:00:01]}  Rc2 {[%clk 0:00:10]} 38. Qd1 {[%clk 0:00:02]}  Qxa2 {[%clk 0:00:09]} 39. Qf3 {[%clk 0:00:02]}  Qe6 {[%clk 0:00:07]} 40. g5 {[%clk 0:00:02]}  d2 {[%clk 0:00:07]} 41. Bxc2 {[%clk 0:00:02]}  Kg7 {[%clk 0:00:06]} 42. Qe4 {[%clk 0:00:02]}  h6 {[%clk 0:00:06]} 43. h4 {[%clk 0:00:02]}  hxg5 {[%clk 0:00:05]} 44. hxg5 {[%clk 0:00:03]}  Qa2 {[%clk 0:00:05]} 45. Qxe5+ {[%clk 0:00:03]}  Kg8 {[%clk 0:00:04]} 46. Qxd6 {[%clk 0:00:03]}  Qxc2 {[%clk 0:00:04]} 47. Qd8+ {[%clk 0:00:03]}  Kg7 {[%clk 0:00:04]} 48. Qf6+ {[%clk 0:00:04]}  Kg8 {[%clk 0:00:04]} 49. Qxf7+ {[%clk 0:00:04]}  Kh8 {[%clk 0:00:04]} 50. Rh1# {[%clk 0:00:04]} 1-0


[Site "https://www.chess.com"]

[Event "Titled Tuesday Blitz May 10 Early 2022"]
[White "Thomas, Anysia"]
[Black "Garcia de Dios, Jose Antonio"]
[WhiteFideId "670472"]
[BlackFideId "5128919"]
[WhiteElo "2002"]
[BlackElo "2080"]
[Result "0-1"]
[Round "04"]
[TimeControl "180+1"]
[Date "2022.05.11"]
[WhiteClock "0:00:02"]
[BlackClock "0:00:02"]

1. d4 {[%clk 0:03:00]}  Nf6 {[%clk 0:02:58]} 2. c4 {[%clk 0:03:01]}  g6 {[%clk 0:02:59]} 3. Nc3 {[%clk 0:03:01]}  Bg7 {[%clk 0:02:59]} 4. e4 {[%clk 0:03:02]}  d6 {[%clk 0:02:59]} 5. Nf3 {[%clk 0:03:02]}  O-O {[%clk 0:03:00]} 6. h3 {[%clk 0:03:03]}  e5 {[%clk 0:03:00]} 7. d5 {[%clk 0:03:03]}  a5 {[%clk 0:02:58]} 8. g4 {[%clk 0:03:03]}  Na6 {[%clk 0:02:57]} 9. Be3 {[%clk 0:03:04]}  Nc5 {[%clk 0:02:57]} 10. Nd2 {[%clk 0:03:04]}  b6 {[%clk 0:02:52]} 11. Be2 {[%clk 0:03:03]}  Qe7 {[%clk 0:02:33]} 12. h4 {[%clk 0:03:03]}  Nfd7 {[%clk 0:02:29]} 13. h5 {[%clk 0:02:57]}  Bf6 {[%clk 0:02:26]} 14. Nf3 {[%clk 0:02:40]}  g5 {[%clk 0:02:10]} 15. h6 {[%clk 0:02:38]}  Kh8 {[%clk 0:02:04]} 16. Rh5 {[%clk 0:02:34]}  Rg8 {[%clk 0:02:04]} 17. Qd2 {[%clk 0:02:33]}  Nf8 {[%clk 0:02:02]} 18. Nxg5 {[%clk 0:02:28]}  Ng6 {[%clk 0:01:59]} 19. Nh3 {[%clk 0:02:19]}  Nf4 {[%clk 0:01:56]} 20. Nxf4 {[%clk 0:02:18]}  exf4 {[%clk 0:01:57]} 21. Bxf4 {[%clk 0:02:07]}  Bxg4 {[%clk 0:01:51]} 22. Bxg4 {[%clk 0:01:53]}  Rxg4 {[%clk 0:01:51]} 23. O-O-O {[%clk 0:01:51]}  Nxe4 {[%clk 0:01:45]} 24. Nxe4 {[%clk 0:00:48]}  Qxe4 {[%clk 0:01:46]} 25. Be3 {[%clk 0:00:49]}  Qxc4+ {[%clk 0:01:38]} 26. Kb1 {[%clk 0:00:49]}  Re8 {[%clk 0:01:26]} 27. Bg5 {[%clk 0:00:24]}  Qe4+ {[%clk 0:01:15]} 28. Ka1 {[%clk 0:00:23]}  Qe5 {[%clk 0:00:52]} 29. Bxf6+ {[%clk 0:00:20]}  Qxf6 {[%clk 0:00:53]} 30. f3 {[%clk 0:00:16]}  Rg6 {[%clk 0:00:48]} 31. Rhh1 {[%clk 0:00:14]}  Kg8 {[%clk 0:00:42]} 32. Rde1 {[%clk 0:00:14]}  Qd8 {[%clk 0:00:32]} 33. Rxe8+ {[%clk 0:00:12]}  Qxe8 {[%clk 0:00:33]} 34. Re1 {[%clk 0:00:12]}  Qd8 {[%clk 0:00:33]} 35. Qe3 {[%clk 0:00:12]}  Kf8 {[%clk 0:00:29]} 36. Qd4 {[%clk 0:00:10]}  Qf6 {[%clk 0:00:27]} 37. Qe3 {[%clk 0:00:09]}  Rxh6 {[%clk 0:00:24]} 38. Qe8+ {[%clk 0:00:09]}  Kg7 {[%clk 0:00:25]} 39. Rg1+ {[%clk 0:00:09]}  Rg6 {[%clk 0:00:25]} 40. Re1 {[%clk 0:00:08]}  h5 {[%clk 0:00:23]} 41. a3 {[%clk 0:00:07]}  Rg2 {[%clk 0:00:20]} 42. Rb1 {[%clk 0:00:02]}  h4 {[%clk 0:00:19]} 43. Qe4 {[%clk 0:00:02]}  h3 {[%clk 0:00:17]} 44. f4 {[%clk 0:00:02]}  Qg6 {[%clk 0:00:15]} 45. f5 {[%clk 0:00:02]}  Qg4 {[%clk 0:00:10]} 46. Qe7 {[%clk 0:00:02]}  h2 {[%clk 0:00:09]} 47. f6+ {[%clk 0:00:01]}  Kg6 {[%clk 0:00:08]} 48. Qf8 {[%clk 0:00:01]}  Rg1 {[%clk 0:00:04]} 49. Qg7+ {[%clk 0:00:01]}  Kf5 {[%clk 0:00:04]} 50. Qh7+ {[%clk 0:00:02]}  Ke5 {[%clk 0:00:02]} 0-1


[Site "https://www.chess.com"]

[Event "Titled Tuesday Blitz May 10 Early 2022"]
[White "Todorovic, Bojan"]
[Black "Petrov, Martin"]
[WhiteFideId "917087"]
[BlackFideId "2911086"]
[WhiteElo "2266"]
[BlackElo "2343"]
[Result "0-1"]
[Round "04"]
[TimeControl "180+1"]
[Date "2022.05.11"]
[WhiteClock "0:00:01"]
[BlackClock "0:01:14"]

1. d4 {[%clk 0:02:59]}  Nf6 {[%clk 0:02:59]} 2. c4 {[%clk 0:02:58]}  e6 {[%clk 0:02:59]} 3. Nc3 {[%clk 0:02:57]}  d5 {[%clk 0:02:59]} 4. cxd5 {[%clk 0:02:56]}  exd5 {[%clk 0:03:00]} 5. Bg5 {[%clk 0:02:55]}  c6 {[%clk 0:02:57]} 6. e3 {[%clk 0:02:55]}  h6 {[%clk 0:02:56]} 7. Bh4 {[%clk 0:02:54]}  Be7 {[%clk 0:02:56]} 8. Bd3 {[%clk 0:02:53]}  O-O {[%clk 0:02:57]} 9. Nf3 {[%clk 0:02:51]}  Ne4 {[%clk 0:02:54]} 10. Bxe7 {[%clk 0:02:43]}  Qxe7 {[%clk 0:02:55]} 11. Bxe4 {[%clk 0:02:43]}  dxe4 {[%clk 0:02:55]} 12. Nd2 {[%clk 0:02:44]}  Bf5 {[%clk 0:02:50]} 13. O-O {[%clk 0:02:42]}  Nd7 {[%clk 0:02:49]} 14. Qc2 {[%clk 0:02:36]}  Nf6 {[%clk 0:02:43]} 15. f4 {[%clk 0:01:31]}  Ng4 {[%clk 0:02:15]} 16. Rae1 {[%clk 0:01:27]}  Qh4 {[%clk 0:02:15]} 17. h3 {[%clk 0:01:23]}  Nf6 {[%clk 0:02:15]} 18. Nc4 {[%clk 0:01:04]}  Rad8 {[%clk 0:02:08]} 19. Qf2 {[%clk 0:00:56]}  Qxf2+ {[%clk 0:02:04]} 20. Rxf2 {[%clk 0:00:55]}  Nd5 {[%clk 0:01:51]} 21. g4 {[%clk 0:00:51]}  Be6 {[%clk 0:01:46]} 22. Nxe4 {[%clk 0:00:42]}  Nxf4 {[%clk 0:01:43]} 23. Rxf4 {[%clk 0:00:36]}  Bxc4 {[%clk 0:01:43]} 24. b3 {[%clk 0:00:31]}  Bd5 {[%clk 0:01:39]} 25. Nc5 {[%clk 0:00:28]}  b6 {[%clk 0:01:38]} 26. Nd3 {[%clk 0:00:27]}  Rfe8 {[%clk 0:01:25]} 27. e4 {[%clk 0:00:16]}  Be6 {[%clk 0:01:23]} 28. e5 {[%clk 0:00:06]}  c5 {[%clk 0:01:22]} 29. Rd1 {[%clk 0:00:01]}  g5 {[%clk 0:01:13]} 30. Re4 {[%clk 0:00:01]}  Bd5 {[%clk 0:01:14]} 0-1


[Site "https://www.chess.com"]

[Event "Titled Tuesday Blitz May 10 Early 2022"]
[White "Tuleyeva-Aketayeva, Dana"]
[Black "Stepanencu, Nicodim-Cosmin"]
[WhiteFideId "13701932"]
[BlackFideId "1256220"]
[WhiteElo "1875"]
[BlackElo "1945"]
[Result "0-1"]
[Round "04"]
[TimeControl "180+1"]
[Date "2022.05.11"]
[WhiteClock "0:00:07"]
[BlackClock "0:00:07"]

1. d4 {[%clk 0:03:00]}  d5 {[%clk 0:02:51]} 2. Nf3 {[%clk 0:03:01]}  Nf6 {[%clk 0:02:51]} 3. g3 {[%clk 0:03:01]}  Bf5 {[%clk 0:02:48]} 4. Bg2 {[%clk 0:03:02]}  e6 {[%clk 0:02:48]} 5. O-O {[%clk 0:03:03]}  h6 {[%clk 0:02:49]} 6. c4 {[%clk 0:03:03]}  c6 {[%clk 0:02:49]} 7. Nc3 {[%clk 0:03:01]}  Nbd7 {[%clk 0:02:50]} 8. Nd2 {[%clk 0:03:01]}  Be7 {[%clk 0:02:41]} 9. e4 {[%clk 0:03:00]}  dxe4 {[%clk 0:02:41]} 10. Ndxe4 {[%clk 0:03:00]}  Nxe4 {[%clk 0:02:40]} 11. Nxe4 {[%clk 0:03:01]}  O-O {[%clk 0:02:41]} 12. Be3 {[%clk 0:02:54]}  Nf6 {[%clk 0:02:27]} 13. Nc3 {[%clk 0:02:40]}  Qa5 {[%clk 0:02:19]} 14. Qb3 {[%clk 0:02:24]}  Qa6 {[%clk 0:02:17]} 15. Rfd1 {[%clk 0:02:17]}  Rac8 {[%clk 0:01:54]} 16. Rd2 {[%clk 0:01:52]}  Ng4 {[%clk 0:01:10]} 17. Bf4 {[%clk 0:01:21]}  g5 {[%clk 0:01:08]} 18. Be3 {[%clk 0:01:16]}  Nxe3 {[%clk 0:01:06]} 19. fxe3 {[%clk 0:01:17]}  Bg6 {[%clk 0:01:05]} 20. Rad1 {[%clk 0:01:10]}  Rc7 {[%clk 0:00:53]} 21. e4 {[%clk 0:01:01]}  Rd8 {[%clk 0:00:49]} 22. d5 {[%clk 0:00:51]}  cxd5 {[%clk 0:00:49]} 23. exd5 {[%clk 0:00:51]}  Bh5 {[%clk 0:00:37]} 24. Nb5 {[%clk 0:00:16]}  Bxd1 {[%clk 0:00:21]} 25. Rxd1 {[%clk 0:00:08]}  Rcd7 {[%clk 0:00:19]} 26. Qd3 {[%clk 0:00:03]}  Bf6 {[%clk 0:00:12]} 27. Be4 {[%clk 0:00:01]}  exd5 {[%clk 0:00:06]} 28. cxd5 {[%clk 0:00:01]}  Qxa2 {[%clk 0:00:06]} 29. Kg2 {[%clk 0:00:01]}  Qxb2+ {[%clk 0:00:06]} 30. Rd2 {[%clk 0:00:02]}  Qb4 {[%clk 0:00:06]} 31. d6 {[%clk 0:00:03]}  a6 {[%clk 0:00:04]} 32. Nc7 {[%clk 0:00:03]}  Rxd6 {[%clk 0:00:05]} 33. Nd5 {[%clk 0:00:02]}  Rxd5 {[%clk 0:00:01]} 34. Bxd5 {[%clk 0:00:02]}  Kg7 {[%clk 0:00:02]} 35. Qe4 {[%clk 0:00:02]}  Qxd2+ {[%clk 0:00:01]} 36. Kh3 {[%clk 0:00:01]}  Qxd5 {[%clk 0:00:02]} 37. Qxd5 {[%clk 0:00:01]}  Rxd5 {[%clk 0:00:02]} 38. g4 {[%clk 0:00:02]}  a5 {[%clk 0:00:03]} 39. Kg3 {[%clk 0:00:02]}  a4 {[%clk 0:00:03]} 40. Kf2 {[%clk 0:00:03]}  Rd3 {[%clk 0:00:04]} 41. Ke2 {[%clk 0:00:03]}  Rc3 {[%clk 0:00:04]} 42. Kd2 {[%clk 0:00:04]}  a3 {[%clk 0:00:05]} 43. Kd1 {[%clk 0:00:05]}  a2 {[%clk 0:00:05]} 44. Kd2 {[%clk 0:00:06]}  a1=Q {[%clk 0:00:06]} 45. Ke2 {[%clk 0:00:07]}  Qb2+ {[%clk 0:00:07]} 0-1


[Site "https://www.chess.com"]

[Event "Titled Tuesday Blitz May 10 Early 2022"]
[White "Wachinger, Guenther"]
[Black "Qashashvili, Alexandre"]
[WhiteFideId "4604261"]
[BlackFideId "13600842"]
[WhiteElo "2212"]
[BlackElo "2316"]
[Result "0-1"]
[Round "04"]
[TimeControl "180+1"]
[Date "2022.05.11"]
[WhiteClock "0:00:03"]
[BlackClock "0:00:04"]

1. e4 {[%clk 0:03:00]}  c6 {[%clk 0:02:57]} 2. c4 {[%clk 0:02:59]}  g6 {[%clk 0:02:57]} 3. d4 {[%clk 0:02:59]}  Bg7 {[%clk 0:02:50]} 4. Nc3 {[%clk 0:02:58]}  d5 {[%clk 0:02:48]} 5. cxd5 {[%clk 0:02:58]}  cxd5 {[%clk 0:02:48]} 6. Nxd5 {[%clk 0:02:57]}  Nc6 {[%clk 0:02:48]} 7. Nf3 {[%clk 0:02:53]}  Bg4 {[%clk 0:02:44]} 8. Be3 {[%clk 0:02:52]}  e6 {[%clk 0:02:39]} 9. Nc3 {[%clk 0:02:51]}  Bxd4 {[%clk 0:02:32]} 10. Bxd4 {[%clk 0:02:37]}  Bxf3 {[%clk 0:02:31]} 11. Qxf3 {[%clk 0:02:24]}  Nxd4 {[%clk 0:02:28]} 12. Bb5+ {[%clk 0:02:22]}  Kf8 {[%clk 0:02:26]} 13. Qd3 {[%clk 0:02:19]}  Nxb5 {[%clk 0:02:23]} 14. Qxb5 {[%clk 0:02:17]}  b6 {[%clk 0:02:17]} 15. Rd1 {[%clk 0:02:09]}  Qe8 {[%clk 0:02:15]} 16. O-O {[%clk 0:02:07]}  Qxb5 {[%clk 0:02:14]} 17. Nxb5 {[%clk 0:02:08]}  Nf6 {[%clk 0:02:13]} 18. f3 {[%clk 0:02:03]}  Ke7 {[%clk 0:02:12]} 19. Nd4 {[%clk 0:01:54]}  Rac8 {[%clk 0:02:07]} 20. Rd2 {[%clk 0:01:50]}  Rhd8 {[%clk 0:02:04]} 21. Rfd1 {[%clk 0:01:48]}  Rd7 {[%clk 0:02:01]} 22. Kf2 {[%clk 0:01:46]}  e5 {[%clk 0:01:59]} 23. Ne2 {[%clk 0:01:46]}  Rxd2 {[%clk 0:01:57]} 24. Rxd2 {[%clk 0:01:47]}  Rd8 {[%clk 0:01:57]} 25. Rxd8 {[%clk 0:01:41]}  Kxd8 {[%clk 0:01:58]} 26. Ke3 {[%clk 0:01:40]}  Kd7 {[%clk 0:01:51]} 27. g4 {[%clk 0:01:38]}  h6 {[%clk 0:01:50]} 28. Nc1 {[%clk 0:01:36]}  Kd6 {[%clk 0:01:48]} 29. Nd3 {[%clk 0:01:35]}  a5 {[%clk 0:01:48]} 30. h3 {[%clk 0:01:28]}  Nd7 {[%clk 0:01:47]} 31. a3 {[%clk 0:01:16]}  Nc5 {[%clk 0:01:46]} 32. Nxc5 {[%clk 0:01:08]}  Kxc5 {[%clk 0:01:43]} 33. Kd3 {[%clk 0:00:36]}  b5 {[%clk 0:01:29]} 34. Kc3 {[%clk 0:00:34]}  b4+ {[%clk 0:01:30]} 35. axb4+ {[%clk 0:00:35]}  axb4+ {[%clk 0:01:29]} 36. Kd3 {[%clk 0:00:35]}  Kb5 {[%clk 0:01:25]} 37. b3 {[%clk 0:00:30]}  Kc5 {[%clk 0:01:25]} 38. Ke3 {[%clk 0:00:30]}  Kd6 {[%clk 0:01:18]} 39. h4 {[%clk 0:00:29]}  Kc6 {[%clk 0:01:11]} 40. g5 {[%clk 0:00:26]}  hxg5 {[%clk 0:01:10]} 41. hxg5 {[%clk 0:00:27]}  Kd6 {[%clk 0:01:10]} 42. Kd3 {[%clk 0:00:19]}  Kc5 {[%clk 0:01:10]} 43. Ke3 {[%clk 0:00:19]}  Kc6 {[%clk 0:01:08]} 44. Ke2 {[%clk 0:00:19]}  Kd6 {[%clk 0:00:57]} 45. Ke3 {[%clk 0:00:18]}  Kc6 {[%clk 0:00:27]} 46. f4 {[%clk 0:00:19]}  exf4+ {[%clk 0:00:24]} 47. Kxf4 {[%clk 0:00:19]}  Kd6 {[%clk 0:00:24]} 48. Ke3 {[%clk 0:00:13]}  Ke5 {[%clk 0:00:22]} 49. Kd3 {[%clk 0:00:13]}  f6 {[%clk 0:00:18]} 50. gxf6 {[%clk 0:00:12]}  Kxf6 {[%clk 0:00:19]} 51. Kd4 {[%clk 0:00:07]}  g5 {[%clk 0:00:18]} 52. Kd5 {[%clk 0:00:07]}  g4 {[%clk 0:00:17]} 53. Kd6 {[%clk 0:00:08]}  g3 {[%clk 0:00:17]} 54. e5+ {[%clk 0:00:08]}  Kf7 {[%clk 0:00:17]} 55. Kd7 {[%clk 0:00:09]}  g2 {[%clk 0:00:17]} 56. e6+ {[%clk 0:00:10]}  Kg7 {[%clk 0:00:17]} 57. e7 {[%clk 0:00:10]}  g1=Q {[%clk 0:00:18]} 58. e8=Q {[%clk 0:00:10]}  Qa7+ {[%clk 0:00:17]} 59. Kc6 {[%clk 0:00:07]}  Qa6+ {[%clk 0:00:15]} 60. Kc5 {[%clk 0:00:07]}  Qa7+ {[%clk 0:00:14]} 61. Kc4 {[%clk 0:00:07]}  Qc7+ {[%clk 0:00:13]} 62. Kxb4 {[%clk 0:00:07]}  Qd6+ {[%clk 0:00:13]} 63. Ka4 {[%clk 0:00:06]}  Qa6+ {[%clk 0:00:11]} 64. Kb4 {[%clk 0:00:07]}  Qd6+ {[%clk 0:00:11]} 65. Ka5 {[%clk 0:00:05]}  Qc5+ {[%clk 0:00:10]} 66. Qb5 {[%clk 0:00:05]}  Qc3+ {[%clk 0:00:09]} 67. b4 {[%clk 0:00:06]}  Qa3+ {[%clk 0:00:09]} 68. Kb6 {[%clk 0:00:06]}  Kf7 {[%clk 0:00:09]} 69. Qc4+ {[%clk 0:00:05]}  Ke7 {[%clk 0:00:09]} 70. b5 {[%clk 0:00:04]}  Kd8 {[%clk 0:00:09]} 71. Qc7+ {[%clk 0:00:03]}  Ke8 {[%clk 0:00:09]} 72. Qc6+ {[%clk 0:00:03]}  Kd8 {[%clk 0:00:09]} 73. Qd5+ {[%clk 0:00:03]}  Ke8 {[%clk 0:00:07]} 74. Kb7 {[%clk 0:00:04]}  Qb4 {[%clk 0:00:06]} 75. b6 {[%clk 0:00:04]}  Qe7+ {[%clk 0:00:05]} 76. Ka8 {[%clk 0:00:03]}  Qa3+ {[%clk 0:00:05]} 77. Kb8 {[%clk 0:00:04]}  Qa5 {[%clk 0:00:04]} 78. b7 {[%clk 0:00:03]}  Qxd5 {[%clk 0:00:04]} 79. Ka7 {[%clk 0:00:03]}  Qa5+ {[%clk 0:00:03]} 80. Kb8 {[%clk 0:00:03]}  Ke7 {[%clk 0:00:03]} 81. Kc8 {[%clk 0:00:03]}  Qd8# {[%clk 0:00:04]} 0-1


[Site "https://www.chess.com"]